[Event "27th CRO-chT Women 2018"]
[Site "Biograd"]
[Date "2018.09.12"]
[Round "5.8"]
[White "Lijic, Kristina"]
[Black "Golub, Nikolina"]
[Result "0-1"]
[ECO "A21"]
[WhiteElo "1715"]
[BlackElo "1839"]
[Annotator "NA"]
[PlyCount "94"]
[EventDate "2018.09.08"]
[EventType "team-tourn"]
[EventCountry "CRO"]
[SourceTitle "playchess.com"]
[Source "ChessBase"]
[SourceQuality "1"]
[TimeControl "40/5400+30:1800+30"]

1. c4 {[%emt 0:00:30]} e5 {[%emt 0:00:30]} 2. Nc3 {[%emt 0:00:00]} f5 {[%emt 0:00:00]} 3. g3 {[%emt 0:00:00]} Nf6 {[%emt 0:00:00]} 4. Bg2 {[%emt 0:00:30]} d6 {[%emt 0:00:00]} 5. e3 {[%emt 0:03:30]} Be7 {[%emt 0:00:00]} 6. Nge2 {[%emt 0:00:00]} O-O {[%emt 0:00:30]} 7. b3 {[%emt 0:05:00]} c6 {[%emt 0:00:30]} 8. Bb2 {[%emt 0:01:30]} Nbd7 {[%emt 0:08:30]} 9. d4 {[%emt 0:04:30]} Qe8 {[%emt 0:02:30]} 10. O-O {[%emt 0:16:30]} Nb6 {[%emt 0:03:30]} 11. Re1 {[%emt 0:02:30]} Qh5 {[%emt 0:10:30]} 12. Nc1 {[%emt 0:02:30]} Qxd1 {[%emt 0:02:30]} 13. Rxd1 {[%emt 0:01:30]} e4 {[%emt 0:00:30]} 14. N1e2 {[%emt 0:03:30]} g5 {[%emt 0:06:30]} 15. Rac1 {[%emt 0:06:30]} a5 {[%emt 0:01:30]} 16. a4 {[%emt 0:07:30]} d5 {[%emt 0:04:30]} 17. c5 {[%emt 0:07:30]} Nbd7 {[%emt 0:00:30]} 18. f4 {[%emt 0:06:30]} Ng4 {[%emt 0:00:30]} 19. h3 {[%emt 0:04:30]} Nxe3 {[%emt 0:00:30]} 20. Re1 {[%emt 0:00:30]} Nxg2 {[%emt 0:00:30]} 21. Kxg2 {[%emt 0:00:00]} h6 {[%emt 0:00:30]} 22. Nd1 {[%emt 0:01:00]} Nf6 {[%emt 0:02:30]} 23. Ne3 {[%emt 0:03:30]} Nh5 {[%emt 0:03:30]} 24. Rg1 {[%emt 0:03:49]} Kh7 {[%emt 0:03:30]} 25. Kh2 {[%emt 0:02:12]} Be6 {[%emt 0:06:30]} 26. Bc3 {[%emt 0:01:04]} gxf4 {[%emt 0:01:30]} 27. Nxf4 {[%emt 0:01:16]} Nxf4 {[%emt 0:00:30]} 28. gxf4 {[%emt 0:00:00]} Bd8 {[%emt 0:00:30]} 29. Bd2 {[%emt 0:01:46]} Bc7 {[%emt 0:00:30]} 30. Ng2 {[%emt 0:01:42]} Rg8 {[%emt 0:03:30]} 31. Nh4 {[%emt 0:01:40]} Raf8 {[%emt 0:05:30]} 32. Rb1 {[%emt 0:01:38]} Bd8 {[%emt 0:02:30]} 33. Be1 {[%emt 0:01:20]} Bf6 {[%emt 0:00:30]} 34. Rd1 {[%emt 0:00:56]} Rxg1 {[%emt 0:10:30]} 35. Kxg1 {[%emt 0:00:03]} Rb8 {[%emt 0:00:30]} 36. Ng2 {[%emt 0:01:47]} Bd8 {[%emt 0:00:30]} 37. b4 {[%emt 0:02:22]} axb4 {[%emt 0:00:00]} 38. Rb1 {[%emt 0:00:38]} Bc8 {[%emt 0:02:00]} 39. Bxb4 {[%emt 0:00:38]} Ra8 {[%emt 0:00:30]} 40. Ra1 {[%emt 0:00:00]} b6 {[%emt 0:00:00]} 41. Ne3 {[%emt 0:03:09]} Bc7 {[%emt 0:09:00]} 42. Ng2 {[%emt 0:01:30]} Ba6 {[%emt 0:02:30]} 43. Ra3 {[%emt 0:01:30]} Bd3 {[%emt 0:03:30]} 44. Ne1 {[%emt 0:01:30]} Be2 {[%emt 0:01:30]} 45. cxb6 {[%emt 0:04:30]} Bxb6 {[%emt 0:00:00]} 46. Bc3 {[%emt 0:01:30]} c5 {[%emt 0:04:00]} 47. dxc5 {[%emt 0:01:30]} Bxc5+ {[%emt 0:00:30]} 0-1

[Event "27th CRO-chT Women 2018"]
[Site "Biograd"]
[Date "2018.09.12"]
[Round "5.9"]
[White "Lakos, Nikoletta"]
[Black "Videkovic, Marina"]
[Result "1-0"]
[ECO "B52"]
[WhiteElo "2258"]
[BlackElo "1833"]
[Annotator "ChessBase"]
[PlyCount "27"]
[EventDate "2018.09.08"]
[EventType "team-tourn"]
[EventCountry "CRO"]
[SourceTitle "playchess.com"]
[Source "ChessBase"]
[SourceQuality "1"]
[TimeControl "40/5400+30:1800+30"]

1. e4 {[%emt 0:00:30]} c5 {[%emt 0:00:30]} 2. Nf3 {[%emt 0:00:00]} d6 {[%emt 0:00:30]} 3. Bb5+ {[%emt 0:00:00]} Bd7 {[%emt 0:00:00]} 4. Bxd7+ {[%emt 0:00:30]} Qxd7 {[%emt 0:01:00]} 5. c4 {[%emt 0:00:00]} Qg4 {[%emt 0:05:30]} 6. O-O {[%emt 0:01:00]} Qxe4 {[%emt 0:01:30]} 7. d4 {[%emt 0:00:30]} Nf6 {[%emt 0:15:30]} 8. Nc3 {[%emt 0:23:30]} Qc6 {[%emt 0:02:30]} 9. Re1 {[%emt 0:21:30]} Nbd7 {[%emt 0:21:30]} 10. dxc5 {[%emt 0:28:22]} dxc5 {[%emt 0:01:30]} 11. Nb5 {[%emt 0:00:42]} e6 {[%emt 0:13:30]} 12. Bf4 {[%emt 0:00:11]} Nh5 {[%emt 0:12:30]} 13. Ne5 {[%emt 0:02:42]} Nxe5 {[%emt 0:02:54]} 14. Bxe5 {[%emt 0:00:19]} 1-0

[Event "27th CRO-chT Women 2018"]
[Site "Biograd"]
[Date "2018.09.11"]
[Round "5.10"]
[White "Grgic, Neomi"]
[Black "Stadler, Brigita"]
[Result "1/2-1/2"]
[ECO "B01"]
[WhiteElo "1851"]
[BlackElo "2067"]
[Annotator "NA"]
[PlyCount "84"]
[EventDate "2018.09.08"]
[EventType "team-tourn"]
[EventCountry "CRO"]
[SourceTitle "playchess.com"]
[Source "ChessBase"]
[SourceQuality "1"]
[TimeControl "40/5400+30:1800+30"]

1. e4 {[%emt 0:00:30]} d5 {[%emt 0:01:30]} 2. exd5 {[%emt 0:00:00]} Nf6 {[%emt 0:00:00]} 3. Nf3 {[%emt 0:00:00]} Nxd5 {[%emt 0:00:00]} 4. d4 {[%emt 0:00:00]} g6 {[%emt 0:01:30]} 5. c4 {[%emt 0:00:00]} Nb6 {[%emt 0:00:00]} 6. h3 {[%emt 0:00:30]} Bg7 {[%emt 0:00:00]} 7. Nc3 {[%emt 0:00:30]} O-O {[%emt 0:00:30]} 8. Be2 {[%emt 0:04:30]} c6 {[%emt 0:09:30] B01: Skandinavische Verteidigung} (8... Nc6 9. Be3 e5 10. d5 Ne7 11. O-O Nf5 12. Bg5 f6 13. Bc1 c5 14. dxc6 bxc6 15. b3 Qe7 16. Ne4 Rd8 17. Qc2 Be6 18. a4 c5 19. Ba3 Rac8 20. Rad1 Nd7 21. Rfe1 {1-0 (39) Nepomniachtchi,I (2729)-Smagin,S (2551) Olginka 2011}) 9. O-O {[%emt 0:02:30]} Be6 {[%emt 0:04:30]} 10. Qb3 {[%emt 0:12:30]} a5 {[%emt 0:00:30]} 11. a4 {[%emt 0:04:30]} Na6 {[%emt 0:03:30]} 12. Be3 {[%emt 0:04:30]} Nb4 {[%emt 0:00:30]} 13. Rfd1 $146 {[%emt 0:04:30]} ({Vorgänger:} 13. Rac1 Bf5 14. Rfd1 Bc8 15. d5 Nd7 16. Ne4 {1-0 (72) Mousavi,S (2135)-Baltag,I (2218) Artek 1999}) 13... Qc7 {[%emt 0:07:30]} 14. Rac1 {[%emt 0:01:30]} f6 {[%emt 0:04:30]} 15. Ne4 {[%emt 0:03:30]} Bf7 {[%emt 0:04:30]} 16. d5 {[%emt 0:16:30]} Nd7 {[%emt 0:11:30]} 17. d6 {[%emt 0:07:30]} exd6 {[%emt 0:01:30]} 18. Nxd6 {[%emt 0:00:00]} c5 {[%emt 0:00:30]} 19. Bf4 {[%emt 0:05:00]} Ne5 {[%emt 0:00:30]} 20. Qe3 {[%emt 0:01:30]} b6 {[%emt 0:16:30]} 21. Kf1 {[%emt 0:11:11]} Nbc6 {[%emt 0:01:30]} 22. Nxe5 {[%emt 0:02:45]} fxe5 {[%emt 0:00:30]} 23. Bh6 {[%emt 0:01:48]} Bxh6 {[%emt 0:03:30]} 24. Qxh6 {[%emt 0:00:00]} Nd4 {[%emt 0:00:00]} 25. Ne4 {[%emt 0:01:47]} Be8 {[%emt 0:03:00]} 26. Qh4 {[%emt 0:06:51]} Bxa4 {[%emt 0:03:30]} 27. Rd3 {[%emt 0:01:08]} Rf4 {[%emt 0:01:30]} 28. Nf6+ {[%emt 0:01:55]} Kh8 {[%emt 0:00:30]} 29. Nd5 {[%emt 0:01:58]} Rxh4 {[%emt 0:01:34]} 30. Nxc7 {[%emt 0:00:01]} Rf8 {[%emt 0:00:28]} 31. Bg4 {[%emt 0:00:55]} Bc6 {[%emt 0:02:52]} 32. Re3 {[%emt 0:01:32]} e4 {[%emt 0:02:29]} 33. Nd5 {[%emt 0:02:17]} Nf5 {[%emt 0:01:20]} 34. Rb3 {[%emt 0:01:23]} Bxd5 {[%emt 0:00:22]} 35. cxd5 {[%emt 0:00:01]} Rf6 {[%emt 0:01:22]} 36. Re1 {[%emt 0:00:32]} e3 {[%emt 0:01:11]} 37. Bxf5 {[%emt 0:00:20]} gxf5 {[%emt 0:00:08]} 38. Rexe3 {[%emt 0:00:11]} c4 {[%emt 0:06:32] [#]} 39. Rb5 $1 {[%emt 0:00:32]} Re4 $16 {[%emt 0:00:48] [#]} (39... Kg7 $142) 40. Ke2 {[%emt 0:00:00]} ({White should play} 40. Rxe4 $1 $18 fxe4 41. Ke2) 40... Kg7 {[%emt 0:00:00]} 41. Rxe4 {[%emt 0:02:23]} fxe4 {[%emt 0:01:24]} 42. Ke3 {[%emt 0:00:30]} Kf7 {[%emt 0:00:30]} 1/2-1/2

[Event "27th CRO-chT Women 2018"]
[Site "Biograd"]
[Date "2018.09.13"]
[Round "7.1"]
[White "Nikolova, Adriana"]
[Black "Ivekovic, Ana"]
[Result "1-0"]
[ECO "C49"]
[WhiteElo "2281"]
[BlackElo "2118"]
[Annotator "NA"]
[PlyCount "91"]
[EventDate "2018.09.08"]
[EventType "team-tourn"]
[EventCountry "CRO"]
[SourceTitle "playchess.com"]
[Source "ChessBase"]
[SourceQuality "1"]
[TimeControl "40/5400+30:1800+30"]

1. e4 {[%emt 0:02:30]} e5 {[%emt 0:00:30]} 2. Nf3 {[%emt 0:00:30]} Nc6 {[%emt 0:00:30]} 3. Nc3 {[%emt 0:00:00]} Nf6 {[%emt 0:00:30]} 4. Bb5 {[%emt 0:00:00]} Bb4 {[%emt 0:00:30]} 5. O-O {[%emt 0:00:30]} O-O {[%emt 0:01:30]} 6. d3 {[%emt 0:00:00]} d6 {[%emt 0:04:30]} 7. Bg5 {[%emt 0:00:00]} a6 {[%emt 0:00:30]} 8. Bxf6 {[%emt 0:07:30]} gxf6 {[%emt 0:01:30]} 9. Bxc6 {[%emt 0:00:30]} bxc6 {[%emt 0:00:30]} 10. Nh4 {[%emt 0:00:30]} Bxc3 {[%emt 0:08:30]} 11. bxc3 {[%emt 0:00:30]} Kh8 {[%emt 0:09:30]} 12. f4 {[%emt 0:00:30]} Rg8 {[%emt 0:02:30]} 13. fxe5 {[%emt 0:19:30]} ({Better is} 13. Qh5 $16) 13... fxe5 {[%emt 0:02:30]} 14. Nf5 {[%emt 0:00:30]} Qg5 {[%emt 0:04:30]} 15. Qe2 {[%emt 0:02:30]} Be6 {[%emt 0:06:30]} 16. Rf3 {[%emt 0:00:30]} Rg6 {[%emt 0:06:30]} 17. d4 {[%emt 0:09:30]} Bxf5 {[%emt 0:22:30]} 18. Rxf5 {[%emt 0:02:30]} Qe7 {[%emt 0:01:30]} 19. Raf1 {[%emt 0:08:30]} Rg7 {[%emt 0:04:30]} 20. dxe5 {[%emt 0:02:30]} dxe5 {[%emt 0:00:30]} 21. Qc4 {[%emt 0:00:30]} Rd8 {[%emt 0:08:14]} 22. R5f2 {[%emt 0:06:30]} Rdg8 {[%emt 0:05:38]} 23. Qxc6 {[%emt 0:03:30]} Qh4 {[%emt 0:00:39]} 24. Qd5 {[%emt 0:02:30]} f6 {[%emt 0:00:29]} 25. Kh1 {[%emt 0:05:30]} Rg6 {[%emt 0:01:41]} 26. Re2 {[%emt 0:08:51]} Rh6 {[%emt 0:00:53]} 27. h3 {[%emt 0:05:12]} Rhg6 {[%emt 0:03:50]} 28. Qe6 {[%emt 0:03:09]} a5 {[%emt 0:01:18]} 29. a4 {[%emt 0:00:37]} Rh6 {[%emt 0:00:55]} (29... Qh6 $14) 30. Rf3 {[%emt 0:01:28]} Qg5 {[%emt 0:00:36]} 31. Ref2 {[%emt 0:01:09]} Rgg6 {[%emt 0:00:37]} (31... Rh4 $16 {was worth a try.}) 32. Qc8+ {[%emt 0:02:22]} Rg8 {[%emt 0:00:01]} 33. Qxc7 {[%emt 0:00:26]} Qg4 {[%emt 0:00:49]} 34. Qc6 {[%emt 0:01:27]} Qg5 {[%emt 0:00:33]} 35. Qe6 {[%emt 0:01:20]} Rf8 {[%emt 0:00:36]} 36. c4 {[%emt 0:00:52]} Qc1+ {[%emt 0:00:29]} 37. Kh2 {[%emt 0:00:12]} Rg6 {[%emt 0:00:29]} 38. Rxf6 {[%emt 0:01:35]} Rfxf6 {[%emt 0:00:19]} 39. Rxf6 {[%emt 0:00:05]} Qxc2 {[%emt 0:00:31]} 40. Rxg6 {[%emt 0:00:00]} hxg6 {[%emt 0:00:00]} 41. Qxe5+ {[%emt 0:02:15]} Kh7 {[%emt 0:00:53]} 42. c5 {[%emt 0:07:30]} Qxa4 {[%emt 0:01:30]} 43. Qd5 {[%emt 0:00:30]} Qc2 {[%emt 0:04:30]} 44. c6 {[%emt 0:00:30]} Qc1 {[%emt 0:00:30]} 45. Qf7+ {[%emt 0:01:30]} Kh6 {[%emt 0:00:30]} 46. c7 {[%emt 0:00:30]} 1-0

[Event "27th CRO-chT Women 2018"]
[Site "Biograd"]
[Date "2018.09.13"]
[Round "7.2"]
[White "Spiranec, Noemi"]
[Black "Berke, Ana"]
[Result "1-0"]
[ECO "A88"]
[WhiteElo "2035"]
[BlackElo "2170"]
[Annotator "NA"]
[PlyCount "73"]
[EventDate "2018.09.08"]
[EventType "team-tourn"]
[EventCountry "CRO"]
[SourceTitle "playchess.com"]
[Source "ChessBase"]
[SourceQuality "1"]
[TimeControl "40/5400+30:1800+30"]

1. d4 {[%emt 0:00:30]} f5 {[%emt 0:03:30]} 2. c4 {[%emt 0:00:30]} Nf6 {[%emt 0:00:30]} 3. Nf3 {[%emt 0:00:30]} g6 {[%emt 0:00:00]} 4. g3 {[%emt 0:00:30]} Bg7 {[%emt 0:00:00]} 5. Bg2 {[%emt 0:00:00]} O-O {[%emt 0:00:30]} 6. O-O {[%emt 0:01:00] LiveBook: 3912 Games} d6 {[%emt 0:00:30]} 7. Nc3 {[%emt 0:06:30]} c6 {[%emt 0:00:30]} 8. Re1 {[%emt 0:02:30]} Ne4 {[%emt 0:09:30]} 9. Qb3 {[%emt 0:07:30] A88: Holländische Verteidigung (Leningrader Variante)} (9. Qc2 Nxc3 10. bxc3 e5 11. e4 fxe4 12. Qxe4 Bf5 13. Qe3 Nd7 14. Ba3 Nb6 15. Qe2 Re8 16. dxe5 dxe5 17. Rad1 {0-1 (34) Vachier Lagrave,M (2745)-Ponomariov,R (2731) Beijing 2013}) 9... Nxc3 {[%emt 0:05:30]} 10. bxc3 {[%emt 0:00:30]} Nd7 $146 {[%emt 0:06:30]} ({Vorgänger:} 10... Kh8 11. e4 fxe4 12. Rxe4 Nd7 13. Ba3 Bf6 14. Rae1 a5 15. h4 a4 16. Qd1 Nb6 {½-½ (27) Chan,N (2041)-Potapov,P (2492) Platja d'Aro 2017}) 11. e4 {[%emt 0:08:30]} fxe4 {[%emt 0:02:30]} 12. Ng5 {[%emt 0:00:30]} Nf6 {[%emt 0:01:30]} 13. Nxe4 {[%emt 0:01:30]} Nxe4 {[%emt 0:01:30]} 14. Rxe4 {[%emt 0:00:30]} e5 {[%emt 0:00:30]} 15. c5+ {[%emt 0:12:30]} Kh8 {[%emt 0:02:30]} 16. cxd6 {[%emt 0:00:30]} exd4 {[%emt 0:02:30]} 17. Rxd4 {[%emt 0:05:30]} Bxd4 {[%emt 0:04:30]} 18. cxd4 {[%emt 0:00:30]} h5 {[%emt 0:03:30]} 19. Bb2 {[%emt 0:02:30]} Kh7 $18 {[%emt 0:09:30]} (19... Qxd6 $142 20. Ba3 (20. d5+ Kh7 $16) 20... Qf6) 20. Re1 {[%emt 0:02:30]} Qf6 {[%emt 0:02:30]} 21. Re7+ {[%emt 0:00:30]} Kh6 {[%emt 0:00:30]} 22. Qe3+ {[%emt 0:00:30]} g5 {[%emt 0:01:30]} 23. h4 {[%emt 0:00:30]} Rg8 {[%emt 0:06:30]} 24. hxg5+ {[%emt 0:01:30]} Qxg5 {[%emt 0:03:30]} 25. Qxg5+ {[%emt 0:10:30]} Kxg5 {[%emt 0:00:30]} 26. d7 {[%emt 0:00:00]} Bxd7 {[%emt 0:04:30]} 27. Rxd7 {[%emt 0:00:00]} h4 {[%emt 0:05:30]} 28. Bc1+ {[%emt 0:02:30]} Kg4 {[%emt 0:00:30]} 29. f3+ {[%emt 0:00:00]} Kf5 {[%emt 0:03:30]} 30. gxh4 {[%emt 0:00:00]} b5 {[%emt 0:03:33]} 31. Kf2 {[%emt 0:01:30]} Rgd8 {[%emt 0:00:54]} 32. Bh3+ {[%emt 0:00:30]} Kg6 {[%emt 0:00:07]} 33. Bg5 {[%emt 0:00:30]} Rxd7 {[%emt 0:02:34]} 34. Bxd7 {[%emt 0:00:30]} b4 {[%emt 0:00:51]} 35. Bxc6 {[%emt 0:00:00]} Rb8 {[%emt 0:01:29]} 36. d5 {[%emt 0:00:00]} Rb6 {[%emt 0:00:57]} 37. d6 {[%emt 0:01:30]} 1-0

[Event "27th CRO-chT Women 2018"]
[Site "Biograd"]
[Date "2018.09.13"]
[Round "7.3"]
[White "Bogdanic, Katarina"]
[Black "Kuhar, Larisa"]
[Result "1-0"]
[ECO "A05"]
[WhiteElo "1921"]
[BlackElo "1912"]
[Annotator "NA"]
[PlyCount "101"]
[EventDate "2018.09.08"]
[EventType "team-tourn"]
[EventCountry "CRO"]
[SourceTitle "playchess.com"]
[Source "ChessBase"]
[SourceQuality "1"]
[TimeControl "40/5400+30:1800+30"]

1. Nf3 {[%emt 0:00:30]} c5 {[%emt 0:00:30]} 2. g3 {[%emt 0:00:00]} b6 {[%emt 0:00:30]} 3. Bg2 {[%emt 0:00:00]} Bb7 {[%emt 0:00:30]} 4. O-O {[%emt 0:00:00]} Nf6 {[%emt 0:00:30]} 5. d3 {[%emt 0:01:00]} e6 {[%emt 0:01:30]} 6. e4 {[%emt 0:00:30]} d6 {[%emt 0:01:30]} 7. Nbd2 {[%emt 0:00:30]} Nbd7 {[%emt 0:02:30] A05: Réti Opening: 1 Nf3 Nf6} (7... Be7 8. c3 Nbd7 9. Qe2 Qc7 10. Rd1 O-O 11. d4 cxd4 12. cxd4 Rac8 13. Ne1 a6 14. Nd3 b5 15. f3 a5 {½-½ (41) Karjakin,S (2753)-Tomashevsky,E (2747) Chita 2015}) 8. a4 {[%emt 0:00:30]} a6 {[%emt 0:00:30]} 9. Nc4 {[%emt 0:00:30]} Qc7 {[%emt 0:03:30]} 10. Bf4 $146 {[%emt 0:00:30]} ({Predecessor:} 10. Qe1 Be7 11. Bf4 Nh5 12. Bd2 O-O 13. Qe2 Rae8 14. Ng5 Nhf6 15. Ne3 h6 16. Nf3 b5 17. axb5 axb5 18. Ra5 Bc6 19. Rfa1 Ra8 {½-½ (19) Meyer,S (2187)-Haas,F (2182) Dotzheim 2002}) 10... e5 {[%emt 0:09:30]} 11. Bd2 {[%emt 0:00:30]} g6 {[%emt 0:01:30]} 12. Ne3 {[%emt 0:02:30]} Bg7 {[%emt 0:01:30]} 13. c4 {[%emt 0:02:30]} O-O {[%emt 0:00:30]} 14. Qc1 {[%emt 0:09:30]} Nb8 {[%emt 0:11:30]} 15. Nd5 {[%emt 0:02:30]} Nxd5 {[%emt 0:01:30]} 16. cxd5 {[%emt 0:01:30]} Nd7 {[%emt 0:02:30]} 17. Bh6 {[%emt 0:00:30]} Rac8 {[%emt 0:11:30]} 18. Bxg7 {[%emt 0:01:30]} Kxg7 {[%emt 0:00:00]} 19. Nd2 {[%emt 0:01:30]} b5 {[%emt 0:06:00]} 20. axb5 {[%emt 0:00:30]} axb5 {[%emt 0:00:30]} 21. Qc3 {[%emt 0:02:30]} Ra8 {[%emt 0:05:30]} 22. f4 {[%emt 0:02:30]} b4 {[%emt 0:01:30]} 23. Qc2 {[%emt 0:00:30]} exf4 {[%emt 0:02:30]} 24. gxf4 {[%emt 0:00:30]} f5 {[%emt 0:04:30]} 25. Rxa8 {[%emt 0:01:30]} Bxa8 {[%emt 0:01:30]} 26. Nc4 {[%emt 0:01:30]} Nb6 {[%emt 0:09:30]} 27. Nxb6 {[%emt 0:10:30]} Qxb6 {[%emt 0:00:00]} 28. Kh1 {[%emt 0:02:30]} ({White should try} 28. e5 $11) 28... fxe4 {[%emt 0:05:03]} 29. dxe4 {[%emt 0:02:30]} Qd8 {[%emt 0:01:28]} 30. Qa4 {[%emt 0:03:30]} Qe7 {[%emt 0:03:45]} 31. Qa6 {[%emt 0:08:30]} Bb7 {[%emt 0:04:44]} 32. Qd3 {[%emt 0:00:00]} Qf6 {[%emt 0:01:36]} 33. Qe2 {[%emt 0:08:00]} Qe7 {[%emt 0:03:46]} 34. Qe1 {[%emt 0:02:30]} Ba6 {[%emt 0:00:33]} 35. Rf2 {[%emt 0:01:30]} Qh4 {[%emt 0:00:16]} 36. Qe3 {[%emt 0:03:30]} g5 {[%emt 0:01:28]} 37. f5 {[%emt 0:00:30]} g4 {[%emt 0:00:31]} 38. Qf4 {[%emt 0:07:30]} Rf6 $16 {[%emt 0:01:09]} (38... Bd3 $11 {remains equal.}) 39. Kg1 {[%emt 0:01:30]} Rh6 {[%emt 0:00:34]} 40. e5 {[%emt 0:00:00]} dxe5 {[%emt 0:00:00]} 41. Qxe5+ {[%emt 0:03:00]} Qf6 {[%emt 0:06:37]} 42. Qc7+ {[%emt 0:00:00]} Kg8 {[%emt 0:00:30]} 43. Qxc5 {[%emt 0:06:00]} Qe5 {[%emt 0:01:30]} 44. Bf1 {[%emt 0:01:30]} Bxf1 {[%emt 0:07:41]} 45. Kxf1 {[%emt 0:00:30]} Rd6 {[%emt 0:11:22]} 46. Qc8+ {[%emt 0:02:30]} Kf7 {[%emt 0:00:29]} 47. Qc7+ {[%emt 0:01:30]} Kg8 {[%emt 0:02:48]} 48. f6 {[%emt 0:00:30]} Qxf6 {[%emt 0:04:32]} 49. Rxf6 {[%emt 0:00:30]} Rxf6+ {[%emt 0:00:02]} 50. Kg2 {[%emt 0:00:30]} h5 {[%emt 0:01:00]} 51. d6 {[%emt 0:00:00]} 1-0

[Event "27th CRO-chT Women 2018"]
[Site "Biograd"]
[Date "2018.09.13"]
[Round "7.4"]
[White "Dejanovic, Tereza"]
[Black "Golub, Nikolina"]
[Result "1-0"]
[ECO "B22"]
[WhiteElo "1815"]
[BlackElo "1839"]
[Annotator "NA RC"]
[PlyCount "153"]
[EventDate "2018.09.08"]
[EventType "team-tourn"]
[EventCountry "CRO"]
[SourceTitle "playchess.com"]
[Source "ChessBase"]
[SourceQuality "1"]
[TimeControl "40/5400+30:1800+30"]

1. e4 {[%emt 0:00:30]} c5 {[%emt 0:00:30]} 2. c3 {[%emt 0:00:00]} Nf6 {[%emt 0:00:00]} 3. e5 {[%emt 0:00:00]} Nd5 {[%emt 0:00:00]} 4. d4 {[%emt 0:00:00]} cxd4 {[%emt 0:00:00]} 5. Nf3 {[%emt 0:00:00]} e6 {[%emt 0:00:00]} 6. cxd4 {[%emt 0:00:30]} b6 {[%emt 0:00:00]} 7. Be2 {[%emt 0:00:30]} Ba6 {[%emt 0:02:00]} 8. O-O {[%emt 0:01:30]} Be7 {[%emt 0:00:30]} 9. Nc3 {[%emt 0:02:30]} Nxc3 {[%emt 0:02:30]} 10. bxc3 {[%emt 0:00:30]} O-O {[%emt 0:02:30]} 11. Bxa6 {[%emt 0:03:30]} Nxa6 {[%emt 0:00:30]} 12. Qd3 {[%emt 0:00:30] B22: Sicilian: 2 c3} Nc7 {[%emt 0:00:30]} 13. c4 {[%emt 0:01:30]} d5 {[%emt 0:05:30]} 14. exd6 {[%emt 0:02:30]} Qxd6 {[%emt 0:00:30]} 15. a4 {[%emt 0:02:30] [#]} f6 $146 {[%emt 0:04:30]} (15... Na6 $11) ({Predecessor:} 15... Rfe8 16. Ba3 Qd8 17. Bxe7 Rxe7 18. a5 h6 19. axb6 axb6 20. Qe4 Rc8 21. Ne5 Qd6 22. Qb7 Ree8 23. Rfd1 Rb8 {½-½ (23) Fiebig,T (2401)-Krejci,J (2533) Germany 2014}) 16. Re1 {[%emt 0:09:30]} Qd7 {[%emt 0:06:30]} 17. Ba3 {[%emt 0:04:30]} Bxa3 {[%emt 0:01:30]} 18. Qxa3 {[%emt 0:00:00]} Rfd8 {[%emt 0:02:30]} 19. Rac1 {[%emt 0:17:00]} Rac8 {[%emt 0:04:30]} 20. Qb3 {[%emt 0:02:30]} Kf7 {[%emt 0:07:30]} 21. Rc3 {[%emt 0:05:30]} Qc6 {[%emt 0:06:30]} 22. a5 {[%emt 0:04:30]} Nb5 {[%emt 0:03:30]} 23. cxb5 {[%emt 0:05:30]} Qxc3 {[%emt 0:03:30]} 24. Qxe6+ {[%emt 0:00:30]} Kg6 {[%emt 0:00:30]} 25. Ne5+ {[%emt 0:14:30]} Kh6 {[%emt 0:01:30]} 26. Nf7+ {[%emt 0:01:30]} Kg6 {[%emt 0:00:30]} 27. Nxd8 {[%emt 0:00:30]} Rxd8 {[%emt 0:01:30]} 28. axb6 {[%emt 0:00:30]} axb6 {[%emt 0:00:30]} 29. Qe4+ {[%emt 0:00:30]} Kh6 {[%emt 0:02:30]} 30. Qe3+ {[%emt 0:01:30]} Qxe3 {[%emt 0:00:30]} 31. fxe3 {[%emt 0:00:00]} Rd5 {[%emt 0:00:30]} 32. Rb1 {[%emt 0:01:00]} f5 {[%emt 0:01:30]} 33. Rb4 {[%emt 0:00:30]} Kg5 {[%emt 0:00:30]} 34. Kf2 {[%emt 0:00:30]} h6 {[%emt 0:03:30]} 35. Ke2 {[%emt 0:01:02]} Kf6 {[%emt 0:01:30]} 36. Kd3 {[%emt 0:00:57]} g6 {[%emt 0:08:30]} 37. Kc4 {[%emt 0:00:40]} Rd8 {[%emt 0:01:30]} 38. Ra4 {[%emt 0:04:08]} Rc8+ {[%emt 0:04:30]} 39. Kd3 {[%emt 0:04:25]} Ke6 {[%emt 0:02:30]} 40. Ra6 {[%emt 0:00:00]} Rb8 {[%emt 0:00:00]} 41. Ra7 {[%emt 0:07:18]} h5 {[%emt 0:05:00]} 42. h4 {[%emt 0:01:30]} Kf6 {[%emt 0:03:30]} 43. Rc7 {[%emt 0:00:30]} Ke6 {[%emt 0:01:30]} 44. Rc6+ {[%emt 0:03:30]} Kf7 {[%emt 0:00:30]} 45. d5 {[%emt 0:00:00]} Rd8 {[%emt 0:03:30]} 46. Kd4 {[%emt 0:00:00]} Re8 {[%emt 0:00:30]} 47. Rxb6 {[%emt 0:01:30]} Re4+ {[%emt 0:00:30]} 48. Kc5 {[%emt 0:06:30]} Rxe3 {[%emt 0:01:30]} 49. Re6 {[%emt 0:00:00]} Rc3+ {[%emt 0:02:30]} 50. Kd6 {[%emt 0:02:00]} Rb3 {[%emt 0:01:30]} 51. Kc6 {[%emt 0:00:30]} Rc3+ {[%emt 0:00:00]} 52. Kd7 {[%emt 0:00:30]} Rc5 {[%emt 0:01:00]} 53. d6 $2 {[%emt 0:04:30]} (53. b6 Rxd5+ 54. Rd6) 53... Rxb5 {[%emt 0:00:30]} 54. Re2 {[%emt 0:01:28]} Rb4 {[%emt 0:02:30]} 55. Rd2 {[%emt 0:05:16]} Rc4 {[%emt 0:01:30]} 56. Rd3 {[%emt 0:04:16]} Rc2 $2 {[%emt 0:01:30]} (56... Rxh4 $11 57. Rc3 Ra4) 57. g3 {[%emt 0:00:11]} Rc1 {[%emt 0:01:30]} 58. Kd8 {[%emt 0:04:33]} Ra1 {[%emt 0:14:49]} 59. d7 {[%emt 0:03:04]} Rc1 {[%emt 0:00:57]} 60. Rd6 {[%emt 0:01:37]} Rc3 {[%emt 0:01:08]} 61. Ra6 {[%emt 0:00:35]} Rc1 {[%emt 0:02:21]} 62. Ra8 {[%emt 0:02:02]} Rc3 {[%emt 0:04:39]} 63. Rc8 {[%emt 0:00:04]} Rxg3 {[%emt 0:01:38]} 64. Kc7 {[%emt 0:00:14]} Rc3+ {[%emt 0:00:46]} 65. Kb6 {[%emt 0:00:17]} Rd3 {[%emt 0:00:14]} 66. d8=Q {[%emt 0:00:10]} Rxd8 {[%emt 0:00:07]} 67. Rxd8 {[%emt 0:00:02]} Kf6 {[%emt 0:00:21]} 68. Kc5 {[%emt 0:01:16]} f4 {[%emt 0:03:03]} 69. Rd5 {[%emt 0:01:32]} f3 {[%emt 0:01:35]} 70. Rd3 {[%emt 0:00:10]} Kf5 {[%emt 0:00:28]} 71. Rxf3+ {[%emt 0:00:15]} Kg4 {[%emt 0:00:12]} 72. Rf6 {[%emt 0:00:10]} g5 {[%emt 0:00:07]} 73. hxg5 {[%emt 0:00:14]} Kxg5 {[%emt 0:00:09]} 74. Rf8 {[%emt 0:01:47]} h4 {[%emt 0:00:03]} 75. Kd4 {[%emt 0:00:07]} Kg4 {[%emt 0:00:11]} 76. Ke3 {[%emt 0:00:07]} h3 {[%emt 0:00:22]} 77. Kf2 {[%emt 0:00:00]} 1-0